Cogmind - Beta 13 *** ADVENTURER MODE // 2024.04.03 @ 10:25:28 Player: Nathan Result: Self-destructed Performance ------------- Evolutions (1) 500 Regions Visited (2) 400 Robots Destroyed (12) 60 Value Destroyed (388) 388 Prototype IDs (2) 40 Alien Tech Used (0) 0 Bonus (0) 0 TOTAL SCORE: 1388 Bonus ------- None Cogmind --------- Core Integrity 80/400 Matter 246/300 Energy 248/250 System Corruption 0% Temperature Cool (0) Movement Flying (34) Location -9/Materials Parts ------- > --- POWER (1) -------- Ion Engine > --- PROPULSION (3) --- Flight Unit Flight Unit Flight Unit > --- UTILITY (3) ------ Sensor Array Terrain Scan Processor Seismic Detector > --- WEAPON (2) ------- Small Laser > --- INVENTORY (5) ---- Light Ion Engine Heat Sink Large Matter Pod (12) Peak State ------------ > --- POWER ------------ Ion Engine > --- PROPULSION ------- Aluminum Leg Aluminum Leg Aluminum Leg > --- UTILITY ---------- Sensor Array Seismic Detector Hardened Light Armor Plating > --- WEAPON ----------- Autogun > --- INVENTORY -------- Ion Engine Light Ion Engine Heat Sink Large Matter Pod [Rating: 10] Favorites ----------- Power Ion Engine Engine Ion Engine Propulsion Aluminum Leg Leg Aluminum Leg Flight Unit Flight Unit Utility Sensor Array Device Sensor Array Storage Large Matter Pod Processor Terrain Scan Processor Protection Hardened Light Armor Plating Weapon Light Assault Rifle Energy Gun Small Laser Ballistic Gun Light Assault Rifle Build | -11 -10 -9 ------- Run | Yrd Mat Mat Slots Evolved 2 | . . 2 Power . | . . . Propulsion 1 | . . 1 Utility 1 | . . 1 Weapon . | . . . Parts Attached 27 | 5 3 19 Power 3 | 1 1 1 Engine 3 | 1 1 1 Core . | . . . Reactor . | . . . Propulsion 11 | 2 . 9 Treads . | . . . Leg 7 | 2 . 5 Wheel . | . . . Hover . | . . . Flight 4 | . . 4 Utility 8 | . 2 6 Device 4 | . 1 3 Storage 1 | . 1 . Processor 2 | . . 2 Hackware . | . . . Protection 1 | . . 1 Artifact . | . . . Weapon 5 | 2 . 3 Energy Gun 1 | . . 1 Energy Cannon . | . . . Ballistic Gun 4 | 2 . 2 Ballistic Cannon . | . . . Launcher . | . . . Special Weapon . | . . . Impact Weapon . | . . . Slashing Weapon . | . . . Piercing Weapon . | . . . Special Melee Weapon . | . . . Unidentified Prototypes . | . . . Parts Lost 11 | . 4 7 Power 1 | . . 1 Propulsion 5 | . 2 3 Utility 2 | . 1 1 Weapon 3 | . 1 2 Highest Loss Streak 5 | . 2 5 To Critical Strikes . | . . . Average Slot Usage (%) 66 | . 78 56 Engine 12 | . 14 11 Leg 19 | . 25 13 Flight 1 | . . 2 Device 13 | . 9 16 Protection 1 | . . 2 Ballistic Gun 16 | . 26 7 Naked Turns . | . . . Heaviest Build 13 | 6 10 13 Greatest Support 30 | 20 20 30 Greatest Overweight (x) 2 | . 1 2 Average Overweight (x) . | . . . Largest Inventory Capacity 5 | 5 5 5 Average Capacity 5 | 5 5 5 Most Carried 5 | 2 5 5 Average Carried 3 | . 4 3 Final Capacity 5 | 5 5 5 Final Carried 4 | 1 4 3 Class Distribution -------------------- 70% | Mutant 29% | Scavenger-Mutant Dominant Class ---------------- Mutant | -10/Materials Scavenger-Mutant | -9/Materials Resources | -11 -10 -9 ----------- Run | Yrd Mat Mat Matter Collected 542 | 254 . 288 Remotely . | . . . Salvage Created 489 | 37 77 375 Parts 28 | 3 4 21 Haulers Intercepted 1 | . . 1 Recyclers Shooed . | . . . Parts Field Recycled . | . . . Retrieved Matter . | . . . Parts Self-Destructed . | . . . Prevented . | . . . Kills | -11 -10 -9 ------- Run | Yrd Mat Mat Combat Hostiles Destroyed 10 | 1 2 7 Guns 10 | 1 2 7 Classes Destroyed 3 | 1 . 2 Tunneler 1 | . . 1 Hauler 1 | . . 1 Grunt 10 | 1 2 7 Best Kill Streak 2 | 1 2 2 Combat Bots Only 2 | 1 2 2 Max Kills in Single Turn 1 | 1 1 1 Gunslinging . | . . . Exploded . | . . . Melee . | . . . Uniques/NPCs Destroyed . | . . . Combat | -11 -10 -9 -------- Run | Yrd Mat Mat Hostile Shots Fired 260 | 1 111 148 Missed 95 | 1 49 45 Damage Taken 1500 | . 551 949 Core 467 | . 147 320 Absorbed by Shields . | . . . Ignored by Resistances 471 | . 175 296 Core Remaining (%) 70 | 100 41 . Volleys Fired 83 | 1 10 72 Largest 2 | 2 2 2 Hottest 63 | 40 40 63 Shots Fired 95 | 2 20 73 Gun 95 | 2 20 73 Cannon . | . . . Launcher . | . . . Special . | . . . Kinetic 87 | 2 20 65 Thermal 8 | . . 8 Explosive . | . . . Electromagnetic . | . . . Robot Hit Streak 16 | 2 3 16 Robot Miss Streak 5 | . 2 5 Penetration Max . | . . . Secondary Targets 1 | . 1 . Max Gunslinging Chain 1 | . 1 . Shots Hit Robots 71 | 2 11 58 Core Hits 33 | 2 6 25 Critical Kills 1 | . . 1 Critical Parts Destroyed 1 | . 1 . Critical Strikes 2 | . 1 1 Destroy 2 | . 1 1 Melee Attacks . | . . . Impact . | . . . Slashing . | . . . Piercing . | . . . Sneak Attacks . | . . . Combat Hostiles . | . . . Follow-up Attacks . | . . . Damage Inflicted 752 | 20 138 594 Guns 752 | 20 138 594 Cannons . | . . . Explosions . | . . . Melee . | . . . Ramming . | . . . Kinetic 684 | 20 138 526 Thermal 68 | . . 68 Explosive . | . . . Electromagnetic . | . . . Impact . | . . . Slashing . | . . . Piercing . | . . . Highest Corruption . | . . . Average Corruption . | . . . Corruption Purged . | . . . Corruption Blocked . | . . . Overload Shots . | . . . Overflow Damage . | . . . Projectiles . | . . . Explosions . | . . . Melee . | . . . Knockbacks . | . . . Impact . | . . . Kinetic . | . . . Secondary . | . . . Self-Inflicted Damage . | . . . Shots . | . . . Rammed . | . . . Targets Rammed . | . . . Kicked . | . . . Crushed . | . . . Highest Temperature 56 | . 24 56 Average Temperature 14 | . 11 15 Received Heat Transfer 1128 | . 417 711 Siege Activations . | . . . Robots Corrupted . | . . . Combat Hostiles . | . . . Parts Fried . | . . . Impact Corruptions . | . . . Robots Melted . | . . . Combat Hostiles . | . . . Parts Melted . | . . . Heat Transferred 150 | . . 150 Parts Sabotaged . | . . . Parts Stolen . | . . . Parts Stripped . | . . . Power Chain Reactions . | . . . Alert | -11 -10 -9 ------- Run | Yrd Mat Mat Peak Influence 284 | 20 142 284 Initial 40 | . 11 40 Average 101 | 3 51 164 Maximum Alert Level 1 | . . 1 Low Security (%) 80 | 100 100 59 Level 1 19 | . . 40 Level 2 . | . . . Level 3 . | . . . Level 4 . | . . . Level 5 . | . . . High Security . | . . . Max Security . | . . . Squads Dispatched 3 | . 1 2 Investigation 1 | . 1 . Extermination . | . . . Reinforcement 2 | . . 2 Assault . | . . . Garrison . | . . . Intercept . | . . . Searches Triggered . | . . . Construction Impeded . | . . . Haulers Reinforced . | . . . Active Scanning Responses . | . . . Cargo Convoy Interrupts . | . . . Stealth | -11 -10 -9 --------- Run | Yrd Mat Mat Distress Signals 3 | . 3 . Communications Jammed . | . . . Distress Signals . | . . . Times Spotted 36 | 1 13 22 Peak Tracking Total 9 | 1 9 7 Tactical Retreats 5 | . 2 3 Traps | -11 -10 -9 ------- Run | Yrd Mat Mat Traps Triggered . | . . . Indirectly . | . . . Trap Hack Attempts . | . . . Triggered . | . . . Disarmed . | . . . Reprogrammed . | . . . Reused . | . . . Traps Extracted . | . . . Installed . | . . . Triggered . | . . . Machines | -11 -10 -9 ---------- Run | Yrd Mat Mat Machines Disabled . | . . . Max in Single Turn . | . . . Machines Repaired . | . . . Machines Dismantled . | . . . Machines Sabotaged . | . . . Overloaded Fab Kills . | . . . Hacking | -11 -10 -9 --------- Run | Yrd Mat Mat Machines Accessed 6 | . 3 3 Terminals 5 | . 3 2 Fabricators . | . . . Repair Stations . | . . . Recycling Units 1 | . . 1 Scanalyzers . | . . . Garrison Access . | . . . Total Hacks 17 | . 10 7 Successful 14 | . 8 6 Failed 3 | . 2 1 Catastrophic . | . . . Database Lockouts . | . . . Manual . | . . . Terminals 14 | . 10 4 Fabricators . | . . . Repair Stations . | . . . Recycling Units 3 | . . 3 Scanalyzers . | . . . Garrison Access . | . . . Terminal Hacks 12 | . 8 4 Record 3 | . 3 . Prototype ID Bank 1 | . 1 . Branch Access Points 1 | . 1 . Alert Level 2 | . 1 1 Locate Traps 1 | . . 1 Dispatch Records 1 | . 1 . Maintenance Status 1 | . 1 . Hauler Manifests 2 | . . 2 Fabricator Hacks . | . . . Repair Station Hacks . | . . . Recycling Unit Hacks 2 | . . 2 Report Inventory 1 | . . 1 Retrieve Components 1 | . . 1 Scanalyzer . | . . . Garrison Access Hacks . | . . . Unauthorized Hacks . | . . . Terminals . | . . . Fabricators . | . . . Repair Stations . | . . . Recycling Units . | . . . Scanalyzers . | . . . Garrison Access . | . . . Data Cores Recovered . | . . . Used . | . . . Hacking Detections 3 | . 2 1 Full Trace Events 3 | . 2 1 Feedback Events . | . . . Feedback Blocked . | . . . Robot Schematics Acquired . | . . . Robots Built . | . . . Authchips . | . . . Time . | . . . Total Robot Build Rating . | . . . Part Schematics Acquired . | . . . Parts Built . | . . . Authchips . | . . . Time . | . . . Total Part Build Rating . | . . . Parts Repaired . | . . . Time . | . . . Parts Recycled . | . . . Recycled Matter . | . . . Retrieved Matter . | . . . Retrieved Components 3 | . . 3 Parts Scanalyzed . | . . . Part Schematics Acquired . | . . . Parts Damaged . | . . . Bothacking | -11 -10 -9 ------------ Run | Yrd Mat Mat Used RIF Installer . | . . . Robots Hacked . | . . . Non-combat . | . . . Combat . | . . . Robot Hacks Applied . | . . . Relay Couplers Released . | . . . Fabnet Peak Effective % . | . . . Robots Rewired . | . . . Allies Hacked . | . . . Hacks Repelled . | . . . Allies | -11 -10 -9 -------- Run | Yrd Mat Mat Total Allies . | . . . Largest Group . | . . . Highest-Rated Group . | . . . Highest-Rated Ally . | . . . Total Orders . | . . . Ally Attacks . | . . . Total Damage . | . . . Kills . | . . . Allies Corrupted . | . . . Allies Melted . | . . . Intel | -11 -10 -9 ------- Run | Yrd Mat Mat Robot Analysis Total . | . . . Derelict Logs Recovered . | . . . Drone Launches . | . . . Drone Recoveries . | . . . Exploration | -11 -10 -9 ------------- Run | Yrd Mat Mat Turns Passed 884 | 77 383 424 Spaces Moved 600 | 63 275 262 Core 93 | 17 6 70 Treads . | . . . Legs 451 | 46 269 136 Wheels . | . . . Hover . | . . . Flight 56 | . . 56 Fastest Speed 34 | 50 100 34 Average Speed 107 | 101 119 97 Slowest Speed 190 | 120 120 190 Overloaded Moves . | . . . Propulsion Burnouts . | . . . Robots Hopped . | . . . Cave-ins Triggered . | . . . Exploration Rate (%) 27 | 8 51 23 Regions Visited 2 Branch Regions . Pre-discovered Areas . | . . . Known Exits Taken . | . . . Unknown Exits Taken 2 | 1 1 . Scrap Searched . | . . . Spaces Dug . | . . . Terrain Destroyed . | . . . Melee . | . . . Projectile . | . . . AOE . | . . . Terrain Rammed . | . . . Walls Destroyed . | . . . Machines Disabled . | . . . Actions | -11 -10 -9 --------- Run | Yrd Mat Mat Total 759 | 74 312 373 Wait 15 | . 15 . Move 598 | 62 274 262 Hop . | . . . Pick Up 26 | 6 6 14 Fast Attach 2 | . 1 1 Attach 24 | 5 2 17 Detach 4 | . 1 3 Swap 1 | . . 1 Drop 6 | . 3 3 Fire 83 | 1 10 72 Melee . | . . . Ram . | . . . Kick . | . . . Crush . | . . . Escape Stasis . | . . . Rewire . | . . . Trap . | . . . Miscellaneous . | . . . Route ------- -11/Scrapyard -10/Materials (discovered 2 exits: *Mat / Min) -9/Materials (discovered 1 exit: [*Sto]) History --------- Turn | Location | Event 2 | -11/Scrapyard | Met Revision 17 60 | -11/Scrapyard | Discovered new exit (range 8) 78 | -11/Scrapyard | Entered Materials 270 | -10/Materials | Identified exit to Mines 305 | -10/Materials | Build established: Mutant 415 | -10/Materials | Discovered new exit (range 16) 459 | -10/Materials | Core integrity fell below 50% 461 | -10/Materials | Entered another Materials area 461 | -9/Materials | Evolved 2 slots: Propulsion x1, Utility x1 602 | -9/Materials | Discovered new exit (range 3) 795 | -9/Materials | Core integrity fell below 50% 862 | -9/Materials | Lost 5 parts (1p2n1u1w) 885 | -9/Materials | Self-destructed Last Messages --------------- Acquired 106 matter. Acquired Sml. Laser. Autogun destroyed. A-02 Transporter destroyed. K-01 Serf collects debris. Acquired Flight Unit. K-01 Serf collects debris. Dropped Aluminum Leg. K-01 Serf collects debris. Acquired Flight Unit. Acquired Terrain Scan Processor. Disabling or destroying stationary machines or terrain requires that a single hit meet or exceed the object's Armor value. Inspect machines by right-clicking on them, and walls via Ctrl-RMB (or as any other object in keyboard mode). Hovering the cursor over an object also shows its Armor in the Scan window. Flight Unit destroyed. Map ----- +----------------------------------------------------+ | ???????????????????????????????????????????##"T"## | | ????????????????????????????????????????????????# | | ????????????????????????????????????????????????# | | ????????????????????????????????????????????????# | | ????????????????????????????????????????????????# | | ????????????????????????????????????????????????## | | ?????????????????????????????????????????????????? | | ?????????????????????????????????????????????????? | | ?????????????????????????????????????????????????? | | ??????????????????????????????? ???????????????? | | ??????????????????????????????# #??????????????? | | ??????????????????????????????# #??????????????? | | ??????????????????????????????# #??????????????? | | ??????????????????????????????# #??????????????? | | ??????????????????????????????# #??????????????? | | ??????????????????????????????# #??????????????? | | ??????????????????????????????# #??????????????? | | ??????????????????????????????# #??????????????? | | ??????????????????????????????# ? #?????????? "??? | | ??????????????????????????????# +?????????# """ | | ????????????????????########### #?????????# """ | | ????????????????????# # #?????????# | | ????????????????????# YY# ################ | | ????????????????????# """ """ # ? | | ????????????????????# """ """ g | | ????????????????????#g"""@"""g# | | ????????????????????# # ################ | | ????????????????????# g # #??????????????? | | ????????????????????# # #??????????????? | | ????????????????????###########? #??????????????? | | ??????????????????????????????# #??????????????? | | ??????????????????????????????# #??????????????? | | ??????????????????????????????# #??????????????? | | ??????????????????????????????# #??????????????? | | ??????????????????????????????# #??????????????? | | ??????????????????????????????# #??????????????? | | ??????????????????????????????# #??????????????? | | ?????????????????????????????? ??????????????? | | ?????????????????????????????? ??????????????? | | ??????????????????????????????? ???????????????? | | ?????????????????????????????????????????????????? | | ?????????????????????????????????????????????????? | | ?????????????????????????????????????????????????? | | ?????????????????????????????????????????????????? | | ?????????????????????????????????????????????????? | | ?????????????????????????????????????????????????? | | | | | | | | | +----------------------------------------------------+ Best States ------------- Heat Dissipation 38 Energy Generation 10 Energy Capacity 250 Matter Stores 300 Matter Capacity 450 Sight Range 16 Robot Scan Range 14 Terrain Scan Density 10 Armor Coverage 150 Resistance: KI 20 Resistance: TH 20 Resistance: EX 20 Resistance: EM 20 Resistance: I 20 Resistance: S 20 Resistance: P 20 Evasion (%) 63 Offensive Hacking 10 Item Schematics ----------------- None Robot Schematics ------------------ None Fabricated ------------ Nothing Alien Tech Used ----------------- None Achievements -------------- None Challenges ------------ None Game ------ Seed TeslaParticleRailgun Manual? 0 Play Time 00:17:29 Cumulative 1.5 hours Start 2024.04.01 @ 15:36:10 End 2024.04.03 @ 10:25:28 Sessions 1 Manual Loads 0 Difficulty Adventurer Special Mode None Game No. 3 Rogue 0 Adventurer 3 Explorer 0 Win Type - Total 0 Types 0/0/0/0/0/0/0/0/0 Lore% 2 Gallery% 4 Achievement% 3 Wizard Run 0 Options --------- Layout 1 ASCII 0 Keyboard 0 Movement Mouse Keybinds 0 Fullscreen 1 Font 24/Smallcaps Map View 50x35 Zoom Use 0% Tactical HUD 0 Map Filters NONE Filters NONE Steam 1 RUN: f964a491-d4c9-4ed1-83bf-20ef2f54e660